[Event "5th Sharjah Masters 2022"]
[Site "Sharjah"]
[Date "2022.05.22"]
[Round "2.28"]
[White "Niemann, Hans Moke"]
[Black "Mammadzada, Gunay"]
[Result "1-0"]
[ECO "B94"]
[WhiteElo "2656"]
[BlackElo "2454"]
[Annotator "TA"]
[PlyCount "97"]
[EventDate "2022.05.21"]
[EventType "swiss"]
[EventCountry "UAE"]
[SourceTitle "playchess.com"]
[Source "ChessBase"]
[SourceQuality "1"]
[TimeControl "5400+30"]

{[%evp 11,97,8,20,-1,0,0,0,0,-21,0,0,0,0,0,0,0,7,0,37,16,33,0,8,4,6,0,0,0,0,0,0,-27,0,0,15,-16,0,0,19,-8,0,-13,0,0,34,42,20,0,0,0,0,0,0,0,0,0,0,0,178,70,75,70,81,23,37,24,232,225,304,304,994,972,1023,993,6157,6033,29975,29976,29976,29977,29977,29978,29993,29994,29994,29995,29996,29997]} 1. e4 {[%emt 0:01:34]} c5 {[%emt 0:00:11]} 2. Nf3 {[%emt 0:00:18]} d6 {[%emt 0:00:12]} 3. d4 {[%emt 0:00:22]} cxd4 {[%emt 0:00:03]} 4. Nxd4 {[%emt 0:00:11]} Nf6 {[%emt 0:00:12]} 5. Nc3 {[%emt 0:00:07]} a6 {[%emt 0:00:19]} 6. Bg5 {[%emt 0:00:10]} Nbd7 {[%emt 0:05:41]} 7. Be3 $5 {[%emt 0:00:12][%mdl 4] 7.Qe2 is setting a new trend. A promising side line. B94: Sicilian Najdorf: 6 Bg5 Nbd7.} (7. Bc4 {looks sharper.} h6 8. Bh4 Qb6 9. Bb3) 7... e6 {[%emt 0:10:42]} 8. g4 {[%emt 0:00:11][%cal Bg2g4,Bg4g5][%mdl 32]} h6 {[%emt 0:01:42]} 9. a4 {[%emt 0:00:09] Inhibits b5. The position is equal.} b6 {[%emt 0:02:05]} 10. h4 {[%emt 0:00:27]} Bb7 {[%emt 0:00:11]} 11. Bg2 {[%emt 0:00:08] [#] aiming for g5.} Rc8 $146 {[%emt 0:07:45][%cal Oc8c3]} ({Predecessor:} 11... g6 12. g5 hxg5 13. hxg5 Rxh1+ 14. Bxh1 Nh5 15. Bf3 Ng7 16. Qd2 Rc8 17. O-O-O Ne5 {1-0 (41) Kochavi,O (2253)-Ibrahimli,M (2432) Terme Catez 2022}) 12. g5 $1 {[%emt 0:00:06]} Rxc3 {[%emt 0:11:51]} 13. bxc3 {[%emt 0:00:07]} Nxe4 {[%emt 0:00:27]} 14. g6 $1 {[%emt 0:00:04] And now gxf7+ would win.} Ndf6 {[%emt 0:03:28]} 15. gxf7+ {[%emt 0:21:31]} Kxf7 {[%emt 0:00:05]} 16. O-O {[%emt 0:01:58]} (16. Qf3 Bd5 $11) 16... Be7 {[%emt 0:09:16]} 17. Re1 {[%emt 0:05:25][%cal Od4e6]} e5 $132 {[%emt 0:07:59][%mdl 2048] Black is fighting back} 18. Nf5 {[%emt 0:02:20]} (18. Qf3 exd4 19. Bxd4 d5 $17) 18... Qd7 {[%emt 0:02:07]} 19. Qf3 {[%emt 0:10:08]} Rb8 {[%emt 0:11:12]} 20. Nxe7 {[%emt 0:04:12] Chess con chili.} (20. Bxb6 $2 Nd2 21. Qd3 Bxg2 22. Kxg2 Rxb6 23. Nxe7 Qg4+ 24. Qg3 Qxg3+ 25. Kxg3 Kxe7 $19) 20... Qxe7 {[%emt 0:00:43]} 21. Qh3 {[%emt 0:05:37]} Bc8 {[%emt 0:05:42][%mdl 1024] Black has compensation.} (21... Nxc3 $5 {[%cal Rb7g2]} 22. Bf1 (22. Bxb6 Bxg2 23. Qxc3 Bd5 $17) 22... Ncd5 $11) 22. Qh1 {[%emt 0:00:17]} ({Don't blunder} 22. Qf3 $2 Bg4 23. Qxe4 Nxe4 24. Bxe4 Qxh4 $19) 22... Bf5 {[%emt 0:00:18]} 23. c4 {[%emt 0:01:54]} Qc7 {[%emt 0:00:29]} 24. Bf1 {[%emt 0:02:25]} Nc5 {[%emt 0:02:24] Against Bd3} 25. Ra2 {[%emt 0:01:55][%cal Oa4a5]} Kg8 {[%emt 0:00:45]} 26. Qf3 {[%emt 0:00:27]} Bg4 {[%emt 0:01:52]} 27. Qg3 {[%emt 0:03:07]} Kh8 {[%emt 0:02:35]} 28. a5 {[%emt 0:14:11]} bxa5 {[%emt 0:01:16]} 29. Rea1 {[%emt 0:00:24]} Nce4 {[%emt 0:02:49] Pair of Knights!} 30. Qg2 {[%emt 0:00:56] Strongly threatening f3.} Bc8 {[%emt 0:04:03]} 31. Rxa5 {[%emt 0:00:35][%cal Oc4c5]} Bb7 {[%emt 0:00:08][%cal Oe4d2] White must now prevent ...Nd2!} 32. f3 {[%emt 0:01:04]} Nc5 {[%emt 0:00:16]} 33. Bxc5 {[%emt 0:00:06]} dxc5 {[%emt 0:00:00]} 34. R5a3 {[%emt 0:00:14]} e4 $2 {[%emt 0:01:00] [#]} (34... Nh5 $11 {and Black stays safe.}) 35. fxe4 {[%emt 0:01:17]} ({White has to play} 35. Qh2 $1 $18 {[%cal Rh2c7]} Qxh2+ 36. Kxh2) 35... Bxe4 {[%emt 0:02:48]} 36. Qg3 {[%emt 0:00:10]} Qd8 {[%emt 0:00:04]} 37. Qe5 {[%emt 0:03:02]} ({Better is} 37. c3 $16) 37... Qf8 $11 {[%emt 0:02:24]} 38. Rxa6 {[%emt 0:01:01]} Ng4 {[%emt 0:01:48] [#] Loses the game.} 39. Qg3 $1 $18 {[%emt 0:00:21]} h5 {[%emt 0:01:00]} 40. Bd3 {[%emt 0:03:59][%cal Bf1d3,Bd3h7,Bh7g6][%mdl 32]} Bb7 {[%emt 0:02:01]} (40... Re8 41. Rf1 Qg8) 41. Rf1 {[%emt 0:01:38][%cal Ba1f1,Bf1f5,Bf5h5][%mdl 32]} Qd8 {[%emt 0:00:36]} 42. Rd6 {[%emt 0:00:16]} Qc8 {[%emt 0:00:28]} 43. Rf5 {[%emt 0:00:49][%cal Od6d7] Threatening mate with Rd7!} Ra8 {[%emt 0:00:25]} 44. Rxh5+ {[%emt 0:00:16] White mates.} Kg8 {[%emt 0:00:01]} 45. Bh7+ {[%emt 0:00:43]} Kf7 {[%emt 0:00:42]} 46. Qf4+ {[%emt 0:01:26]} Nf6 {[%emt 0:00:16] [#]} 47. Rxf6+ $1 {[%emt 0:00:37]} gxf6 {[%emt 0:00:23] [#]} 48. Bg6+ $1 {[%emt 0:00:04][%mdl 512]} Kg8 {[%emt 0:00:44] [#]} (48... Ke6 49. Bf5+) 49. Rh8+ $3 {[%emt 0:00:05][%mdl 512] Weighted Error Value: White=0.10 (very precise) /Black=0.47} 1-0

[Event "5th Sharjah Masters 2022"]
[Site "Sharjah"]
[Date "2022.05.22"]
[Round "2.29"]
[White "Dimakiling, Oliver"]
[Black "Jumabayev, Rinat"]
[Result "1-0"]
[ECO "D27"]
[WhiteElo "2420"]
[BlackElo "2628"]
[Annotator "TA"]
[PlyCount "98"]
[EventDate "2022.05.21"]
[EventType "swiss"]
[EventCountry "UAE"]
[SourceTitle "playchess.com"]
[Source "ChessBase"]
[SourceQuality "1"]
[TimeControl "5400+30"]

{[%evp 21,98,0,4,8,18,19,22,15,18,12,35,20,37,9,24,0,0,0,25,0,0,0,0,0,0,0,16,0,0,0,0,0,0,0,0,0,0,0,440,435,412,0,0,0,52,43,34,18,19,22,22,22,19,24,20,21,46,17,46,45,50,50,54,64,65,64,91,91,93,93,93,93,93,93,93,93,102,91,91]} 1. Nf3 {[%emt 0:00:05]} Nf6 {[%emt 0:00:20]} 2. d4 {[%emt 0:00:26]} d5 {[%emt 0:00:09]} 3. c4 {[%emt 0:00:31]} e6 {[%emt 0:00:04]} 4. Nc3 {[%emt 0:00:17]} dxc4 {[%emt 0:00:07]} 5. e3 {[%emt 0:01:21]} a6 {[%emt 0:00:53]} 6. a4 {[%emt 0:00:32]} c5 {[%emt 0:03:37]} 7. Bxc4 {[%emt 0:00:10]} Nc6 {[%emt 0:00:04]} 8. O-O {[%emt 0:00:10]} Be7 {[%emt 0:00:29]} 9. Qe2 {[%emt 0:00:19]} O-O {[%emt 0:00:52]} 10. Rd1 {[%emt 0:00:31]} Qc7 {[%emt 0:00:39]} 11. Bd2 {[%emt 0:06:37] 11.dxc5 gains popularity.} Rd8 {[%emt 0:01:27][%cal Rc5d4]} 12. Be1 {[%emt 0:00:17] D27: Queen's Gambit Accepted: Classical main line: 7 e4!? and 7 a4.} Bd7 {[%emt 0:07:04]} 13. d5 {[%emt 0:09:17]} exd5 {[%emt 0:01:08]} 14. Nxd5 {[%emt 0:00:55] The position is equal.} Nxd5 {[%emt 0:00:06]} 15. Bxd5 {[%emt 0:00:06] [#]} Be8 $146 {[%emt 0:08:04]} ({Predecessor:} 15... Bf6 16. Bc3 Bxc3 17. bxc3 Be8 18. e4 Qe7 19. a5 Rab8 20. Qe3 b5 21. axb6 Rxb6 {1-0 (45) Foisor,O (2495)-Anand,V (2500) Moscow 1987}) 16. Qc4 {[%emt 0:05:29]} b5 {[%emt 0:10:06]} 17. Qe4 {[%emt 0:08:01]} Rac8 {[%emt 0:20:37]} 18. axb5 {[%emt 0:02:01]} axb5 {[%emt 0:00:23]} 19. h4 {[%emt 0:02:58]} b4 {[%emt 0:09:48]} 20. Rac1 {[%emt 0:10:10]} h6 {[%emt 0:13:56]} 21. h5 {[%emt 0:01:06]} Bf8 {[%emt 0:01:38]} 22. Ba2 {[%emt 0:05:23]} Qe7 {[%emt 0:02:48]} 23. Qc2 $40 {[%emt 0:00:18][%mdl 128] White has some attack.} Qf6 {[%emt 0:04:09]} 24. Nd2 {[%emt 0:03:36]} Ne5 $1 {[%emt 0:07:39][%cal Bc6e5,Be5g4,Bg4e3][%mdl 32] Hoping for ...Bb5.} 25. Bb1 {[%emt 0:00:20][%csl Gb1][%cal Rc2h7]} g6 {[%emt 0:01:36]} 26. Ne4 {[%emt 0:00:09]} Qb6 {[%emt 0:00:36]} 27. hxg6 {[%emt 0:05:02]} fxg6 {[%emt 0:00:11]} 28. f4 {[%emt 0:02:35]} Ng4 {[%emt 0:01:24]} 29. Qe2 {[%emt 0:00:27]} Qe6 {[%emt 0:02:24][%mdl 8192]} (29... h5 $11) 30. Rxd8 {[%emt 0:01:24]} Rxd8 {[%emt 0:00:10] [#]} 31. Nxc5 $2 {[%emt 0:01:06]} (31. Qxg4 $1 $18 {[%mdl 512]} Qxg4 32. Nf6+ Kg7 33. Nxg4) 31... Bxc5 $11 {[%emt 0:02:36]} ({Don't do} 31... Qxe3+ 32. Qxe3 Nxe3 33. Ne6 $16 (33. Bxb4 Bf7 $11)) 32. Rxc5 {[%emt 0:00:34]} Qxe3+ {[%emt 0:00:15]} (32... Rd1 $11 33. Bxg6 (33. Qxd1 Qxe3+ 34. Kh1 Qxf4 $15) 33... Rxe1+ 34. Qxe1 Bxg6) 33. Qxe3 $14 {[%emt 0:00:00]} Nxe3 {[%emt 0:00:16]} 34. Ba2+ {[%emt 0:00:00]} Bf7 {[%emt 0:00:33]} 35. Bxf7+ {[%emt 0:00:15]} Kxf7 {[%emt 0:00:01]} 36. Bxb4 $11 {[%emt 0:00:38][%mdl 4096] Endgame KRB-KRN} Rd1+ {[%emt 0:01:16]} 37. Kf2 {[%emt 0:01:33]} Nd5 {[%emt 0:00:11]} 38. Rc4 {[%emt 0:00:23]} h5 {[%emt 0:00:58]} 39. Bc3 {[%emt 0:04:54]} Ke6 {[%emt 0:00:44]} 40. Ke2 {[%emt 0:00:46] Re4+ is the strong threat.} Rg1 {[%emt 0:00:36]} 41. Re4+ {[%emt 0:00:14]} Kd7 {[%emt 0:00:08]} 42. Kf2 {[%emt 0:02:52]} Rc1 {[%emt 0:00:09]} 43. Be5 {[%emt 0:00:31]} Rc2+ {[%emt 0:01:04]} 44. Kf3 {[%emt 0:00:23] White is better.} Rc1 {[%emt 0:00:28]} 45. Ra4 {[%emt 0:00:41]} Ke6 {[%emt 0:00:43][%cal Og6g5]} 46. Ra6+ {[%emt 0:00:27]} Kf7 {[%emt 0:00:33]} 47. Ke4 {[%emt 0:08:24]} Ne7 {[%emt 0:00:05]} 48. Rf6+ {[%emt 0:00:08]} Ke8 {[%emt 0:00:06]} 49. Bd6 {[%emt 0:03:47]} Rc2 {[%emt 0:01:50][%csl LRb2,LRg2] Weighted Error Value: White=0.21 (precise) /Black=0.28 (precise)} 1-0

[Event "5th Sharjah Masters 2022"]
[Site "Sharjah"]
[Date "2022.05.22"]
[Round "2.30"]
[White "Buksa, Nataliya"]
[Black "Mastrovasilis, Dimitrios"]
[Result "1-0"]
[ECO "B41"]
[WhiteElo "2406"]
[BlackElo "2613"]
[Annotator "TA"]
[PlyCount "109"]
[EventDate "2022.05.21"]
[EventType "swiss"]
[EventCountry "UAE"]
[SourceTitle "playchess.com"]
[Source "ChessBase"]
[SourceQuality "1"]
[TimeControl "5400+30"]

{[%evp 9,109,22,62,46,66,66,66,61,68,0,0,7,7,39,46,41,47,42,46,45,47,40,48,46,43,54,46,43,41,1,20,26,37,37,56,52,51,0,25,4,16,0,0,-3,32,27,85,96,96,104,106,84,119,121,127,129,116,125,125,118,197,195,177,178,623,624,595,587,577,572,719,710,811,787,737,429,692,681,643,0,594,614,773,626,672,663,653,639,766,645,998,963,1179,1073,2084,1735,6215,6215,3036,2028,5322,2163]} 1. e4 {[%emt 0:00:02]} c5 {[%emt 0:00:35]} 2. Nf3 {[%emt 0:00:56]} e6 {[%emt 0:00:10]} 3. d4 {[%emt 0:00:05]} cxd4 {[%emt 0:00:09]} 4. Nxd4 {[%emt 0:00:05]} a6 {[%emt 0:00:09]} 5. c4 {[%emt 0:00:13]} Bc5 {[%emt 0:00:11]} 6. Nc3 {[%emt 0:07:16] B41: Sicilian: Kan Variation: 5 c4.} d6 {[%emt 0:00:35]} 7. Nb3 {[%emt 0:10:09] White is more active.} Ba7 {[%emt 0:03:51] [#]} 8. Qd3 $146 {[%emt 0:01:07] White is slightly better.} ({Predecessor:} 8. Qe2 Ne7 9. Be3 O-O 10. O-O-O Qc7 11. Kb1 Nbc6 12. h4 Bxe3 13. Qxe3 f5 14. Bd3 {½-½ (39) Vallejo Pons,F (2629)-Epishin,V (2626) Dos Hermanas 2003}) 8... Nc6 {[%emt 0:06:35]} 9. Bf4 {[%emt 0:01:49]} (9. Qg3 $14) 9... e5 $11 {[%emt 0:07:43]} 10. Be3 {[%emt 0:00:50] next Bxa7 is good for White.} Nb4 {[%emt 0:01:27]} 11. Qd2 {[%emt 0:00:04]} Bxe3 {[%emt 0:00:19]} 12. fxe3 {[%emt 0:00:03]} Bg4 {[%emt 0:02:12]} 13. Be2 {[%emt 0:19:07]} Bxe2 {[%emt 0:03:55]} 14. Qxe2 {[%emt 0:00:28]} Nf6 {[%emt 0:02:02]} 15. O-O {[%emt 0:03:03]} O-O {[%emt 0:02:23]} 16. Rad1 {[%emt 0:03:44]} Qe7 $1 {[%emt 0:00:59]} 17. a3 {[%emt 0:11:06]} Nc6 {[%emt 0:00:41]} 18. Nd5 {[%emt 0:02:54]} Nxd5 {[%emt 0:01:08]} 19. Rxd5 {[%emt 0:00:21]} Rad8 {[%emt 0:16:45]} 20. Qd3 {[%emt 0:01:07]} Qc7 {[%emt 0:12:43]} 21. Rd1 {[%emt 0:01:47][%cal Rd5d6]} Qb6 {[%emt 0:00:49]} 22. Rd2 {[%emt 0:08:57]} h6 {[%emt 0:09:07]} 23. Nc1 {[%emt 0:02:56]} ({Better is} 23. h3 $14) 23... Qa7 {[%emt 0:06:50]} (23... Ne7 $5 {[%cal Re7d5]} 24. c5 Qc6 25. Rxd6 Rxd6 26. cxd6 (26. Qxd6 Qxe4 27. Qd3 Qh4 $11) 26... Rd8 $11) 24. Qe2 {[%emt 0:03:43]} Qb8 {[%emt 0:09:18]} 25. Qd1 {[%emt 0:02:44][%cal Rd5d6]} Qa7 {[%emt 0:01:10]} 26. Qb3 {[%emt 0:05:09]} Kh7 {[%emt 0:04:42]} 27. Ne2 {[%emt 0:00:38]} f5 {[%emt 0:01:00]} (27... b5 $11 {remains equal.} 28. cxb5 axb5) 28. exf5 $16 {[%emt 0:06:14] Black must now prevent Ng3. Black is on the road to losing.} (28. Rxd6 Nd4 $1 29. R2xd4 exd4 30. Rxd8 Rxd8 31. exd4 fxe4 $15) 28... Ne7 {[%emt 0:00:16]} 29. Rxd6 {[%emt 0:00:05]} Rxd6 {[%emt 0:00:12]} 30. Rxd6 {[%emt 0:00:03] aiming for Ng3.} Nxf5 {[%emt 0:00:07]} 31. Rb6 {[%emt 0:00:19]} Qb8 {[%emt 0:02:05] ...Qd8 is the strong threat.} 32. Ng3 {[%emt 0:04:22]} ({Resist} 32. Rxb7 Qc8) 32... Nxg3 {[%emt 0:04:08]} 33. hxg3 {[%emt 0:00:04][%mdl 4096] Endgame KQR-KQR} e4 {[%emt 0:00:39]} 34. Qb4 {[%emt 0:00:36]} Rd8 {[%emt 0:00:36]} (34... Rc8 $16) 35. Qe7 $18 {[%emt 0:00:53]} Re8 {[%emt 0:00:51] [#]} 36. Qd6 {[%emt 0:01:18]} ({Stronger than} 36. Rxb7 Qxg3 37. Qf6 (37. Qxe8 Qe1+ 38. Kh2 Qh4+ 39. Kg1 Qe1+ 40. Kh2 Qh4+ 41. Kg1 Qe1+ $11) 37... Re5 $11) 36... Qc8 $2 {[%emt 0:00:14]} (36... Qxd6 37. Rxd6 Rc8) 37. Qg6+ {[%emt 0:00:48]} Kh8 {[%emt 0:00:01] [#]} 38. Rxb7 $3 {[%emt 0:00:40][%csl Gb7][%cal Rg6g7][%mdl 512]} Rg8 {[%emt 0:00:05]} 39. Qxe4 {[%emt 0:00:35]} Qc5 {[%emt 0:00:02]} 40. b4 {[%emt 0:00:34]} Qh5 {[%emt 0:00:21]} 41. Rd7 {[%emt 0:01:41] Strongly threatening c5.} Re8 {[%emt 0:00:49]} 42. Qf3 {[%emt 0:02:10]} Qg5 {[%emt 0:00:38]} (42... Qxf3 $142 43. gxf3 Rxe3) 43. Rd3 {[%emt 0:00:29]} Qg6 {[%emt 0:01:01]} 44. Rd7 {[%emt 0:00:21]} ({White should play} 44. Rd5 $18 Re6 45. c5) 44... Qe6 $2 {[%emt 0:01:53][%mdl 8192]} (44... Qg5 $1 $11 {and Black stays safe.}) 45. Rd5 {[%emt 0:00:04] White is clearly winning.} a5 {[%emt 0:00:53]} 46. Rxa5 {[%emt 0:00:52]} Qxc4 {[%emt 0:00:13]} 47. Rc5 {[%emt 0:00:36]} Qd3 {[%emt 0:00:30]} 48. e4 {[%emt 0:00:06][%cal Be3e4,Be4e5][%mdl 32]} Qd4+ {[%emt 0:00:35]} 49. Kh2 {[%emt 0:00:04]} Qd7 {[%emt 0:00:44]} 50. e5 {[%emt 0:00:40]} Qe7 {[%emt 0:00:18]} 51. Qg4 {[%emt 0:00:10]} Qf7 {[%emt 0:00:34]} 52. Rc8 {[%emt 0:00:41] Intending e6 and mate.} Rxc8 {[%emt 0:00:17]} 53. Qxc8+ {[%emt 0:00:04]} Kh7 {[%emt 0:00:03]} 54. Qc2+ {[%emt 0:01:12]} Kh8 {[%emt 0:00:02]} 55. Qe2 {[%emt 0:00:18] Weighted Error Value: White=0.30/Black=0.49} 1-0

[Event "5th Sharjah Masters 2022"]
[Site "Sharjah"]
[Date "2022.05.22"]
[Round "2.31"]
[White "Adly, Ahmed"]
[Black "Haznedaroglu, Kivanc"]
[Result "0-1"]
[ECO "A46"]
[WhiteElo "2596"]
[BlackElo "2425"]
[Annotator "TA"]
[PlyCount "76"]
[EventDate "2022.05.21"]
[EventType "swiss"]
[EventCountry "UAE"]
[SourceTitle "playchess.com"]
[Source "ChessBase"]
[SourceQuality "1"]
[TimeControl "5400+30"]

{[%evp 12,76,0,-2,29,27,26,8,23,31,22,22,38,0,5,0,3,-6,52,20,26,11,53,33,34,-24,28,22,22,18,36,26,23,16,23,8,7,0,40,28,37,-14,36,0,0,0,0,0,0,0,0,0,0,0,0,0,817,-1353,-1310,-29989,-29990,-29990,-29989,-29980,-29954,-29997,-973]} 1. Nf3 {[%emt 0:00:04]} Nf6 {[%emt 0:00:21]} 2. g3 {[%emt 0:00:05]} b5 {[%emt 0:00:09]} 3. Bg2 {[%emt 0:00:08]} Bb7 {[%emt 0:00:05]} 4. O-O {[%emt 0:00:10]} e6 {[%emt 0:00:13]} 5. d4 {[%emt 0:00:11]} c5 {[%emt 0:03:19]} 6. a4 {[%emt 0:00:09]} b4 {[%emt 0:00:38]} 7. c3 {[%emt 0:00:06]} bxc3 {[%emt 0:03:43] A46: 1 d4 Nf6 2 Nf3 e6: Torre, London and Colle Systems.} 8. Nxc3 {[%emt 0:01:07]} Be7 {[%emt 0:04:13]} 9. Bf4 {[%emt 0:03:57]} O-O {[%emt 0:05:19] The position is equal.} 10. dxc5 {[%emt 0:02:15]} Na6 {[%emt 0:02:35]} 11. Nb5 {[%emt 0:07:11]} Bxc5 {[%emt 0:02:58] [#]} 12. Rc1 $146 {[%emt 0:00:55]} ({Predecessor:} 12. Nd6 Bd5 13. Qd3 Nb4 14. Qc3 Na6 15. Be5 Bxd6 16. Bxd6 Ne4 17. Qa3 Re8 18. Bf4 {½-½ (37) Cervino Rossel,C (2100)-Pablos Tenrero,R (1988) Madrid 2017}) 12... Qb6 {[%emt 0:05:07]} 13. Ne5 {[%emt 0:08:48] And now Nc4 would win.} Bxg2 {[%emt 0:04:39]} 14. Kxg2 {[%emt 0:00:03]} d6 {[%emt 0:08:34]} (14... Nd5 $11) 15. Nd3 {[%emt 0:02:29]} (15. Nc4 $5 {[%cal Rc4b6]} Qb7+ 16. f3 $14) 15... Nd5 {[%emt 0:00:46]} 16. Bd2 {[%emt 0:03:12]} Rfd8 {[%emt 0:02:18]} 17. e4 {[%emt 0:09:39]} (17. Bg5 $5 {[%cal Rg5d8]}) 17... Ndb4 {[%emt 0:02:36]} 18. Nf4 {[%emt 0:00:03]} (18. Qe2 $14) 18... Qb7 {[%emt 0:03:25]} ({Black should play} 18... d5) 19. Qf3 $11 {[%emt 0:15:47]} Nc6 {[%emt 0:04:56]} 20. Nd3 {[%emt 0:01:12][%cal Oe4e5] Threatens to win with e5!} Nd4 {[%emt 0:01:14]} 21. Nxd4 {[%emt 0:00:13]} Bxd4 {[%emt 0:00:03]} 22. b4 {[%emt 0:00:34]} Rac8 {[%emt 0:01:45] Inhibits Rc4.} 23. h4 {[%emt 0:11:04]} Nb8 {[%emt 0:04:34]} 24. Bg5 {[%emt 0:05:16]} Rxc1 {[%emt 0:01:07]} 25. Rxc1 {[%emt 0:02:14]} (25. Bxc1 Nd7 $11) 25... Rc8 {[%emt 0:00:34]} 26. Rd1 {[%emt 0:07:18]} (26. Rxc8+ $14 Qxc8 27. Be3) 26... Rc2 {[%emt 0:05:43]} (26... h6 $11 27. Be3 Bxe3 28. Qxe3 Nd7) 27. Bf4 {[%emt 0:02:27]} (27. e5 $5 {[%cal Rf3b7]} d5 28. Bh6 $11) 27... Qa6 {[%emt 0:02:46]} 28. Be5 {[%emt 0:04:19]} Nc6 {[%emt 0:12:15]} 29. b5 {[%emt 0:09:08]} Qxa4 {[%emt 0:00:03]} 30. bxc6 {[%emt 0:00:03]} dxe5 {[%emt 0:00:07]} 31. Nxe5 $40 {[%emt 0:00:02][%mdl 128] Black needs to defend precisely.} f6 {[%emt 0:00:06]} 32. Qg4 {[%emt 0:00:06]} Rxf2+ {[%emt 0:00:36]} 33. Kh3 {[%emt 0:00:35]} f5 $2 {[%emt 0:06:27][%mdl 8192] [#]} (33... fxe5 34. Qxe6+ Kf8 35. c7 Qe8 36. Qxe8+ Kxe8 37. c8=Q+ Ke7 38. Rc1) (33... h5 $11 34. Qxe6+ Kh7) 34. exf5 $4 {[%emt 0:01:02][%mdl 8192] [#]} (34. Qh5 $1 $18 h6 35. Qf7+ Kh7 36. Qg6+ Kg8 37. Qe8+ Kh7 38. Qg6+ Kg8 39. c7) 34... Qc2 $1 $19 {[%emt 0:00:05][%csl Gc2][%cal Rf2h2]} 35. Qg5 {[%emt 0:03:43]} (35. Rh1 Bxe5) 35... Rh2+ {[%emt 0:00:11] Black mates.} 36. Kg4 {[%emt 0:00:01]} Qxd1+ {[%emt 0:04:19]} 37. Nf3 {[%emt 0:00:02]} Bf6 {[%emt 0:00:09]} 38. Qh5 {[%emt 0:01:30]} Qa4+ {[%emt 0:00:13] Weighted Error Value: White=0.55/Black=0.16 (very precise)} 0-1

[Event "5th Sharjah Masters 2022"]
[Site "Sharjah"]
[Date "2022.05.22"]
[Round "2.32"]
[White "Azarov, Sergei"]
[Black "Hesham, Abdelrahman"]
[Result "1-0"]
[ECO "B94"]
[WhiteElo "2588"]
[BlackElo "2412"]
[Annotator "TA"]
[PlyCount "67"]
[EventDate "2022.05.21"]
[EventType "swiss"]
[EventCountry "UAE"]
[SourceTitle "playchess.com"]
[Source "ChessBase"]
[SourceQuality "1"]
[TimeControl "5400+30"]

{[%evp 12,67,34,3,10,20,30,8,0,6,0,0,0,10,0,10,0,0,6,7,0,0,0,0,0,0,52,50,72,79,79,81,138,57,262,267,260,216,392,200,190,194,469,486,633,501,504,520,512,504,583,580,576,557,557,566,613,593]} 1. e4 {[%emt 0:00:03]} c5 {[%emt 0:00:04]} 2. Nf3 {[%emt 0:00:10]} d6 {[%emt 0:00:04]} 3. d4 {[%emt 0:00:24]} cxd4 {[%emt 0:00:06]} 4. Nxd4 {[%emt 0:00:04]} Nf6 {[%emt 0:00:04]} 5. Nc3 {[%emt 0:00:10]} a6 {[%emt 0:00:04]} 6. Bg5 {[%emt 0:00:35]} Nbd7 {[%emt 0:00:06]} 7. Bc4 {[%emt 0:01:31] 7.Qe2 is a critical line.} Qb6 {[%emt 0:00:08] B94: Sicilian Najdorf: 6 Bg5 Nbd7.} 8. Bb3 {[%emt 0:00:34]} e6 {[%emt 0:00:05]} 9. Qd2 {[%emt 0:01:11]} Be7 {[%emt 0:06:19] The position is equal.} 10. O-O-O {[%emt 0:00:25]} Nc5 {[%emt 0:00:54]} 11. Rhe1 {[%emt 0:01:09][%cal Od4f5] Threatens to win with Nf5!} h6 {[%emt 0:01:34]} 12. Bh4 {[%emt 0:01:00][%cal Od4f5,Bg5h4,Bh4g3,Bg3e5][%mdl 32] Strongly threatening Nf5!} Qc7 {[%emt 0:25:26]} 13. Bg3 {[%emt 0:33:29] Black must now prevent e5.} O-O {[%emt 0:10:20]} 14. e5 {[%emt 0:00:21]} dxe5 {[%emt 0:01:22]} 15. Bxe5 {[%emt 0:00:36] [#]} Nxb3+ $146 {[%emt 0:03:36]} ({Predecessor:} 15... Qb6 16. Kb1 Bd7 17. Qf4 a5 18. a4 Qb4 19. g4 Bxa4 20. g5 Nh5 21. Qf3 g6 22. Nxa4 Nxb3 23. cxb3 hxg5 {1-0 (30) Dominguez Perez,L (2739)-Gulamali,K (2341) Chess.com INT 2017}) 16. axb3 {[%emt 0:01:06]} Qa5 {[%emt 0:03:22]} 17. Kb1 {[%emt 0:00:57] Against Qa1+} Ng4 {[%emt 0:09:40]} 18. Bg3 {[%emt 0:03:16]} Bb4 {[%emt 0:00:25]} (18... Rd8 $11) 19. Nf3 $1 $14 {[%emt 0:09:21]} Nf6 {[%emt 0:05:23][%cal Of6d5]} 20. Bd6 {[%emt 0:02:27]} Bxc3 {[%emt 0:08:37]} 21. bxc3 {[%emt 0:01:59]} Rd8 {[%emt 0:00:35]} (21... Re8 $142) 22. Kb2 {[%emt 0:05:24]} (22. Ne5 $16) 22... b5 $2 {[%emt 0:01:28] This move loses the game for Black.} (22... Qf5 $14) 23. Qf4 $18 {[%emt 0:08:45] Hoping for Bc7.} Rd7 {[%emt 0:05:29] [#] Prevents Bc7.} (23... Nd5 $2 24. Rxd5 $1 {[%mdl 512]} (24. Bb4 Nxf4 25. Bxa5 Rxd1 $11) 24... exd5 25. Bc7 Qxc7 26. Qxc7 $18) 24. Ne5 $1 {[%emt 0:01:46]} Rb7 {[%emt 0:00:11]} (24... Nd5 $2 25. Rxd5 Rb7 26. Rd3 $18) (24... Qd8) 25. Nc6 {[%emt 0:07:30] Dancing on a razor blade. Active counter play!} (25. Re3 $142) 25... Qb6 {[%emt 0:00:09] [#]} 26. Ne7+ {[%emt 0:00:13][%cal Bc6e7,Be7c8,Bc8d6][%mdl 32]} Kh7 $2 {[%emt 0:01:31] [#]} (26... Rxe7 27. Bxe7 Nd5) 27. Be5 $1 {[%emt 0:03:18] White is clearly winning.} Nd5 {[%emt 0:00:26]} (27... Rxe7 28. Bxf6) 28. Nxc8 {[%emt 0:03:08]} Qc6 {[%emt 0:03:45] [#]} 29. Qg3 {[%emt 0:04:07][%csl Ge5][%cal Rg3g7]} f6 {[%emt 0:00:33]} 30. Nd6 {[%emt 0:00:16]} fxe5 {[%emt 0:02:20]} 31. Nxb7 {[%emt 0:00:13]} Qxb7 {[%emt 0:00:04]} 32. Qxe5 {[%emt 0:00:36]} Qc6 {[%emt 0:00:25]} 33. Rd3 {[%emt 0:01:00]} Rc8 {[%emt 0:00:08]} 34. g3 {[%emt 0:02:44] Weighted Error Value: White=0.16 (very precise) /Black=0.47} 1-0